bitfinex-derivatives/quotes_BTCF0:USTF0_20250926
["timestamp","ask_amount","ask_price","bid_price","bid_amount"]
[1758878212749,1.31368186,109710.0,109700.0,0.03478]
[1758878216356,0.0910766,109700.0,109690.0,0.08405486]
[1758878217365,0.0910766,109700.0,109690.0,0.55053185]
[1758878217563,0.0910766,109700.0,109690.0,0.64161675]
[1758878218167,0.11245443,109700.0,109690.0,0.64161675]
[1758878219564,0.11245443,109700.0,109690.0,0.17513976]
[1758878219862,0.11245443,109700.0,109690.0,0.55053185]
[1758878220368,0.47325443,109700.0,109690.0,0.08405486]
[1758878227564,0.95829276,109700.0,109690.0,0.04910486]
[1758878227767,1.35829276,109700.0,109690.0,0.04910486]
[1758878227969,0.0910849,109690.0,109680.0,0.01282]
[1758878228165,0.0910932,109680.0,109670.0,0.08494486]
[1758878228367,0.4610673,109680.0,109670.0,0.08494486]
[1758878229072,0.4518932,109680.0,109670.0,0.08494486]
[1758878229667,0.4518932,109680.0,109670.0,0.55142185]
[1758878231571,0.0910932,109680.0,109670.0,0.55142185]
[1758878233064,0.0910932,109680.0,109670.0,0.91222185]
[1758878233473,0.0910932,109680.0,109670.0,1.00332335]
[1758878233661,0.36999419,109700.0,109680.0,0.01294]
[1758878233867,0.4731876,109700.0,109690.0,0.59349189]
[1758878234070,1.2876813,109700.0,109690.0,0.55151185]
[1758878234374,0.4518813,109700.0,109690.0,0.64259675]
[1758878234570,1.2877613,109700.0,109690.0,0.64259675]
[1758878234872,1.2877613,109700.0,109690.0,0.65190106]
[1758878236272,0.9269613,109700.0,109690.0,1.01270106]
[1758878237168,0.9269613,109700.0,109690.0,0.92161616]
[1758878237573,0.9269613,109700.0,109690.0,0.45513917]
[1758878237774,0.9269613,109700.0,109690.0,1.01270106]
[1758878239763,0.83588,109700.0,109690.0,1.01270106]
[1758878239970,0.52555791,109710.0,109690.0,1.01270106]
[1758878240175,0.16475791,109710.0,109700.0,0.50240699]
[1758878240376,1.00143791,109710.0,109700.0,0.50240699]
[1758878241771,0.0910735,109710.0,109700.0,0.50240699]
[1758878241973,0.0910661,109720.0,109710.0,0.03593]
[1758878242271,1.2886661,109720.0,109710.0,0.50240699]
[1758878242470,0.9278661,109720.0,109710.0,0.50240699]
[1758878242673,1.2886661,109720.0,109710.0,0.50240699]
[1758878242974,0.9278661,109720.0,109710.0,0.50240699]
[1758878244272,1.2886661,109720.0,109710.0,0.50240699]
[1758878244877,0.9278661,109720.0,109710.0,0.50240699]
[1758878245276,1.2886661,109720.0,109710.0,0.50240699]
[1758878245681,0.9278661,109720.0,109710.0,0.50240699]
[1758878247275,1.2886661,109720.0,109710.0,0.03593]
[1758878248580,1.63851394,109720.0,109710.0,0.38577784]
[1758878249072,1.27771394,109720.0,109710.0,0.38577784]
[1758878249381,1.63851394,109720.0,109710.0,0.38577784]
[1758878252383,1.63851394,109720.0,109710.0,0.01294]
[1758878252585,0.0910683,109710.0,109700.0,0.46662021]
[1758878252784,0.0910683,109710.0,109700.0,1.16631589]
[1758878252984,0.0910683,109710.0,109700.0,0.81646805]
[1758878253684,0.0910683,109710.0,109700.0,0.81746805]
[1758878254185,0.0910683,109710.0,109700.0,0.82346805]
[1758878254978,0.0910683,109710.0,109700.0,1.17331589]
[1758878255374,0.0910683,109710.0,109700.0,1.26439249]
[1758878255680,0.4518683,109710.0,109700.0,0.90359249]
[1758878255887,0.4518683,109710.0,109700.0,0.81251589]
[1758878256282,0.80171614,109710.0,109700.0,0.46266805]
[1758878256482,0.4518683,109710.0,109700.0,0.41356319]
[1758878256679,0.4518683,109710.0,109700.0,0.81251589]
[1758878256880,0.4518683,109710.0,109700.0,0.76341103]
[1758878257280,0.4518683,109710.0,109700.0,0.06371535]
[1758878257480,0.80171614,109710.0,109700.0,0.41356319]
[1758878257676,0.80171614,109710.0,109700.0,0.40756319]
[1758878257880,0.4518683,109710.0,109700.0,0.85448763]
[1758878258191,0.4518683,109710.0,109700.0,0.76341103]
[1758878259484,0.4518683,109710.0,109700.0,0.75741103]
[1758878259677,0.4518683,109710.0,109700.0,0.75641103]
[1758878260386,0.4518683,109710.0,109700.0,0.05671535]
[1758878260689,0.4518683,109710.0,109700.0,0.75641103]
[1758878261381,0.4518683,109710.0,109700.0,0.10582021]
[1758878261783,0.4518683,109710.0,109700.0,0.80551589]
[1758878263392,0.47320827,109710.0,109700.0,0.80551589]
[1758878266793,0.11240827,109710.0,109700.0,0.80551589]
[1758878267793,0.11240827,109710.0,109700.0,1.16631589]
[1758878267991,0.94852827,109710.0,109700.0,1.25739249]
[1758878268493,0.9271883,109710.0,109700.0,1.20828763]
[1758878269291,0.0910683,109710.0,109700.0,1.20828763]
[1758878269498,0.9271883,109710.0,109700.0,1.20828763]
[1758878272612,0.0910683,109710.0,109700.0,1.20828763]
[1758878272912,0.9269483,109710.0,109700.0,1.20828763]
[1758878275818,0.5429333,109720.0,109700.0,1.20828763]
[1758878276016,0.11265791,109720.0,109710.0,0.38651784]
[1758878276220,0.94813791,109720.0,109710.0,0.47758614]
[1758878282817,0.02159261,109720.0,109710.0,1.58823398]
[1758878283016,0.01177286,109730.0,109720.0,0.12773]
[1758878283318,0.01177286,109730.0,109720.0,1.18822568]
[1758878284317,0.01677286,109730.0,109720.0,1.31172676]
[1758878284714,0.01677286,109730.0,109720.0,1.23722589]
[1758878284915,0.10782456,109730.0,109720.0,1.23722589]
[1758878285216,0.10782456,109730.0,109720.0,1.23720833]
[1758878285413,0.10782456,109730.0,109720.0,0.78534833]
[1758878285414,0.46862456,109730.0,109720.0,0.78534833]
[1758878285613,0.10782456,109730.0,109720.0,0.78534833]
[1758878286715,0.10782456,109730.0,109720.0,0.87640833]
[1758878287622,0.10282456,109730.0,109720.0,0.87640833]
[1758878294526,0.10282456,109730.0,109720.0,1.23720833]
[1758878295624,0.10282456,109730.0,109720.0,0.87640833]
[1758878295926,0.10282456,109730.0,109720.0,0.87740833]
[1758878296531,0.10282456,109730.0,109720.0,0.17771265]
[1758878296719,0.10282456,109730.0,109720.0,0.87740833]
[1758878297527,0.10282456,109730.0,109720.0,0.90486694]
[1758878297728,0.10282456,109730.0,109720.0,0.90386694]
[1758878298629,0.10282456,109730.0,109720.0,0.89786694]
[1758878299020,0.10282456,109730.0,109720.0,0.43550049]
[1758878299222,0.10282456,109730.0,109720.0,0.78534833]
[1758878299421,0.10282456,109730.0,109720.0,0.87640833]
[1758878299830,0.10282456,109730.0,109720.0,0.78534833]
[1758878301119,0.10282456,109730.0,109720.0,0.87640833]
[1758878303734,0.10282456,109730.0,109720.0,0.17671265]
[1758878303938,0.10282456,109730.0,109720.0,0.87640833]
[1758878306237,0.10282456,109730.0,109720.0,0.08565265]
[1758878306238,0.8134724,109730.0,109720.0,0.08565265]
[1758878306438,2.07016808,109730.0,109720.0,0.0137]
[1758878306832,0.09106,109720.0,109710.0,0.43385049]
[1758878307038,0.80170784,109720.0,109710.0,0.38486784]
[1758878308038,0.81106432,109720.0,109710.0,0.38486784]
[1758878308238,0.80170784,109720.0,109710.0,0.38486784]
[1758878308632,0.45686,109720.0,109710.0,0.03502]
[1758878310042,0.46577826,109720.0,109710.0,0.03502]
[1758878311242,1.35398931,109720.0,109710.0,0.0137]
[1758878311541,0.0910683,109710.0,109700.0,0.03426]
[1758878311736,0.4518683,109710.0,109700.0,0.03426]
[1758878311939,1.2870683,109710.0,109700.0,0.03426]
[1758878315547,1.2870683,109710.0,109700.0,0.50073663]
[1758878315939,1.2870683,109710.0,109700.0,0.03426]
[1758878316540,2.15354493,109710.0,109700.0,0.03426]
[1758878317541,1.6870683,109710.0,109700.0,0.03426]
[1758878318047,1.6920683,109710.0,109700.0,0.03426]
[1758878319447,1.2920683,109710.0,109700.0,0.03426]
[1758878319649,1.2920683,109710.0,109700.0,0.50073663]
[1758878320049,1.36633554,109710.0,109700.0,0.50073663]
[1758878326654,1.36133554,109710.0,109700.0,0.50073663]
[1758878327354,1.36633554,109710.0,109700.0,0.50073663]
[1758878332454,0.53113554,109710.0,109700.0,0.50073663]
[1758878332659,1.36645554,109710.0,109700.0,0.50073663]
[1758878332862,1.38826232,109710.0,109700.0,0.50073663]
[1758878333058,1.36645554,109710.0,109700.0,0.50073663]
[1758878333265,1.38826723,109710.0,109700.0,0.50073663]
[1758878334365,1.38326723,109710.0,109700.0,0.50073663]
[1758878337673,1.38326723,109710.0,109700.0,0.59181323]
[1758878338474,1.02246723,109710.0,109700.0,0.59181323]
[1758878339071,1.02246723,109710.0,109700.0,0.50073663]
[1758878340472,1.02246723,109710.0,109700.0,0.59181323]
[1758878340774,0.85713169,109710.0,109700.0,0.61288209]
[1758878340964,0.85713169,109710.0,109700.0,0.14640546]
[1758878341165,0.94824426,109710.0,109700.0,0.14640546]
[1758878341370,1.30904426,109710.0,109700.0,0.52180549]
[1758878341766,0.94824426,109710.0,109700.0,0.52180549]
[1758878342373,0.94824426,109710.0,109700.0,0.52780549]
[1758878342876,0.94824426,109710.0,109700.0,0.61888209]
[1758878343066,0.94824426,109710.0,109700.0,0.52780549]
[1758878343265,0.9263883,109710.0,109700.0,0.52780549]
[1758878343973,0.9263883,109710.0,109700.0,0.61988209]
[1758878344881,0.94823977,109710.0,109700.0,0.52880549]
[1758878345074,0.9263883,109710.0,109700.0,0.52880549]
[1758878345274,1.2871883,109710.0,109700.0,0.52880549]
[1758878345472,1.2871883,109710.0,109700.0,0.06232886]
[1758878345673,1.2871883,109710.0,109700.0,0.52880549]
[1758878345878,2.15366493,109710.0,109700.0,0.04126]
[1758878346068,2.15366493,109710.0,109700.0,0.007]
[1758878346069,2.17547434,109710.0,109700.0,0.007]
[1758878347573,2.24719169,109710.0,109700.0,0.006]
[1758878348579,2.24719169,109710.0,109690.0,0.01294]
[1758878348580,0.0910766,109700.0,109690.0,0.01294]
[1758878348783,0.0910849,109690.0,109680.0,0.50155663]
[1758878348972,0.9263649,109690.0,109680.0,0.50155663]
[1758878349278,1.2871649,109690.0,109680.0,0.03508]
[1758878350183,1.30942801,109690.0,109680.0,0.01295]
[1758878350683,1.30942801,109690.0,109680.0,0.03508]
[1758878350982,0.0910932,109680.0,109670.0,0.50155663]
[1758878351184,0.0910932,109680.0,109670.0,0.03508]
[1758878351377,0.0850932,109680.0,109670.0,0.03508]
[1758878351674,0.0850932,109680.0,109670.0,0.50155663]
[1758878352382,0.0850932,109680.0,109670.0,0.50455663]
[1758878352575,0.0850932,109680.0,109670.0,0.51655663]
[1758878353582,0.9204532,109680.0,109670.0,0.87735663]
[1758878353778,0.9204532,109680.0,109670.0,1.36845823]
[1758878353985,0.4518905,109690.0,109680.0,0.03563]
[1758878354283,1.2872905,109690.0,109680.0,0.59319983]
[1758878354581,0.9264905,109690.0,109680.0,0.95399983]
[1758878354977,0.4518827,109700.0,109690.0,0.03563]
[1758878355278,0.4518827,109700.0,109690.0,0.50210663]
[1758878355279,1.30947994,109700.0,109690.0,0.50210663]
[1758878356488,1.31847994,109700.0,109690.0,0.50210663]
[1758878356688,1.31847994,109700.0,109690.0,0.03563]
[1758878356882,1.31847994,109700.0,109690.0,0.50210663]
[1758878357382,0.48311994,109700.0,109690.0,0.03563]
[1758878357583,1.31851994,109700.0,109690.0,0.03563]
[1758878358680,0.0910849,109690.0,109680.0,0.50210663]
[1758878358886,0.4518849,109690.0,109680.0,0.03563]
[1758878359578,0.4518849,109690.0,109680.0,0.50210663]
[1758878360082,0.4518849,109690.0,109680.0,0.50310663]
[1758878360389,0.47411664,109690.0,109680.0,0.50310663]
[1758878361285,0.47411664,109690.0,109680.0,0.50410663]
[1758878365683,0.47411664,109690.0,109680.0,0.03763]
[1758878365992,0.47411664,109690.0,109680.0,0.50410663]
[1758878367094,1.34059327,109690.0,109680.0,0.002]
[1758878370586,1.22421635,109690.0,109680.0,0.002]
[1758878373193,1.22422099,109690.0,109680.0,0.002]
[1758878373391,0.87412128,109690.0,109680.0,0.0376]
[1758878373594,1.22422099,109690.0,109680.0,0.01561]
[1758878373892,1.22422099,109690.0,109680.0,0.002]
[1758878374194,1.22422099,109690.0,109680.0,0.35209971]
[1758878374995,1.22422099,109690.0,109680.0,0.002]
[1758878375889,1.22422099,109690.0,109680.0,0.36570971]
[1758878377699,1.22422099,109690.0,109680.0,0.002]
[1758878379093,1.22422099,109690.0,109680.0,0.0376]
[1758878379293,1.22422099,109690.0,109680.0,0.38769971]
[1758878379489,0.82422099,109690.0,109680.0,0.38769971]
[1758878379690,0.82422099,109690.0,109680.0,0.36570971]
[1758878380697,0.82435991,109690.0,109680.0,0.36570971]
[1758878381295,0.82435991,109690.0,109680.0,0.38769971]
[1758878381907,0.4742602,109690.0,109680.0,0.38769971]
[1758878382198,0.82435991,109690.0,109680.0,0.38769971]
[1758878384501,0.0911016,109670.0,109660.0,0.03549]
[1758878384709,1.63752131,109670.0,109660.0,0.38558971]
[1758878384898,1.2874216,109670.0,109660.0,0.38558971]
[1758878385095,1.2874216,109670.0,109660.0,0.73568942]
[1758878385296,1.71000095,109670.0,109660.0,0.38558971]
[1758878385497,1.71000095,109670.0,109660.0,0.0135]
[1758878385697,1.75048031,109670.0,109660.0,0.36359971]
[1758878385897,1.75048031,109670.0,109660.0,0.40258971]
[1758878386803,1.0214773,109670.0,109660.0,1.15268942]
[1758878387107,0.99910124,109670.0,109660.0,1.15268942]
[1758878387302,0.9266216,109670.0,109660.0,1.15268942]
[1758878387605,0.94899668,109670.0,109660.0,1.15268942]
[1758878387802,1.30979668,109670.0,109660.0,1.15268942]
[1758878388006,1.2877816,109670.0,109660.0,1.15268942]
[1758878388202,1.31015792,109670.0,109660.0,1.15268942]
[1758878394814,1.38311125,109670.0,109660.0,1.15268942]
[1758878400715,1.38311125,109670.0,109660.0,0.45249]
[1758878400915,1.38311125,109670.0,109660.0,1.15268942]
[1758878402823,1.73321096,109670.0,109660.0,1.15268942]
[1758878403524,1.38311125,109670.0,109660.0,1.15268942]
[1758878405130,1.73321096,109670.0,109660.0,1.15268942]
[1758878406431,1.74241216,109670.0,109660.0,1.15268942]
[1758878408633,1.73321096,109670.0,109660.0,1.15268942]
[1758878408933,1.38311125,109670.0,109660.0,1.15268942]
[1758878409535,1.36073493,109670.0,109660.0,1.15268942]
[1758878409932,1.38308572,109670.0,109660.0,1.15268942]
[1758878410532,1.38308572,109670.0,109660.0,0.45249]
[1758878410732,1.38308572,109670.0,109660.0,1.15268942]
[1758878412434,0.54720572,109670.0,109660.0,1.15268942]
[1758878412621,1.38276572,109670.0,109660.0,1.15268942]
[1758878412825,1.38276572,109670.0,109660.0,1.17410288]
[1758878413421,0.11345239,109670.0,109660.0,1.13490288]
[1758878413627,0.11345239,109670.0,109660.0,1.97611239]
[1758878413628,0.83556,109670.0,109660.0,1.97611239]
[1758878413924,0.9266615,109670.0,109660.0,1.53490288]
[1758878414129,0.9266615,109670.0,109660.0,1.62601278]
[1758878414430,0.0911015,109670.0,109660.0,1.62601278]
[1758878414630,0.0910949,109680.0,109670.0,0.1268215]
[1758878414834,0.9266149,109680.0,109670.0,1.18782092]
[1758878415035,0.3608,109700.0,109670.0,1.58782092]
[1758878415227,0.11342603,109700.0,109690.0,0.82700432]
[1758878415533,0.11342603,109700.0,109690.0,0.73591942]
[1758878415736,0.52359025,109710.0,109700.0,0.01308]
[1758878416030,1.38145603,109710.0,109700.0,0.73591942]
[1758878416238,1.35911025,109710.0,109700.0,0.75726684]
[1758878416535,1.2873929,109710.0,109700.0,0.75726684]
[1758878417039,0.9265929,109710.0,109700.0,1.11806684]
[1758878417435,0.83548,109710.0,109700.0,1.20914344]
[1758878417638,0.84648,109710.0,109700.0,1.20914344]
[1758878417832,0.84748,109710.0,109700.0,1.20914344]
[1758878418233,0.83648,109710.0,109700.0,1.21014344]
[1758878418431,0.001,109710.0,109700.0,1.61014344]
[1758878418628,0.53674815,109730.0,109720.0,0.03572]
[1758878418828,1.39451525,109730.0,109720.0,0.757078]
[1758878419132,1.01142815,109730.0,109720.0,0.757078]
[1758878419740,0.92037025,109730.0,109720.0,0.757078]
[1758878420036,0.84721286,109730.0,109720.0,1.117878]
[1758878420338,0.93826456,109730.0,109720.0,1.117878]
[1758878421240,0.84721286,109730.0,109720.0,1.117878]
[1758878421537,0.84713286,109730.0,109720.0,1.208938]
[1758878422241,0.84713286,109730.0,109720.0,1.117878]
[1758878422537,0.93818456,109730.0,109720.0,1.117878]
[1758878423438,0.94318456,109730.0,109720.0,1.117878]
[1758878430541,0.94318456,109730.0,109720.0,0.88398171]
[1758878432637,0.10782456,109730.0,109720.0,0.88398171]
[1758878432940,0.94298456,109730.0,109720.0,0.97504181]
[1758878433645,0.85193286,109730.0,109720.0,0.97504181]
[1758878433944,0.85189286,109730.0,109720.0,0.97504181]
[1758878434343,0.94294466,109730.0,109720.0,0.97504181]
[1758878435032,0.94294466,109730.0,109720.0,0.88398171]
[1758878435643,0.94294466,109730.0,109720.0,0.41767858]
[1758878435840,0.94294466,109730.0,109720.0,0.88398171]
[1758878438043,0.94294466,109730.0,109720.0,0.97504181]
[1758878438350,0.01677286,109730.0,109720.0,0.97504181]
[1758878438651,0.85185286,109730.0,109720.0,1.37504181]
[1758878439447,0.85185286,109730.0,109720.0,0.97504181]
[1758878439646,0.01677286,109730.0,109720.0,1.84134494]
[1758878439843,0.85185286,109730.0,109720.0,1.84134494]
[1758878440149,0.85185286,109730.0,109720.0,1.37504181]
[1758878440150,0.94290466,109730.0,109720.0,1.37504181]
[1758878440649,0.94290466,109730.0,109720.0,0.97504181]
[1758878443850,0.96514081,109730.0,109720.0,0.97504181]
[1758878444351,0.96514081,109730.0,109720.0,1.44134494]
[1758878447651,0.96514081,109730.0,109720.0,0.97504181]
[1758878449554,0.96514081,109730.0,109720.0,1.44134494]
[1758878449858,0.77396901,109730.0,109720.0,1.44134494]
[1758878450451,0.9260082,109740.0,109730.0,0.1256518]
[1758878450651,0.9260082,109740.0,109730.0,0.59195493]
[1758878451650,0.9310082,109740.0,109730.0,0.59195493]
[1758878451850,0.0960482,109740.0,109730.0,0.50090313]
[1758878452056,0.9310082,109740.0,109730.0,0.50090313]
[1758878452556,0.0960482,109740.0,109730.0,0.50090313]
[1758878452762,0.9310082,109740.0,109730.0,0.50090313]
[1758878453456,0.0960482,109740.0,109730.0,0.50090313]
[1758878453644,0.9309682,109740.0,109730.0,0.50090313]
[1758878461866,0.95317754,109740.0,109730.0,0.50090313]
[1758878462768,0.95317284,109740.0,109730.0,0.59195493]
[1758878464864,0.95317284,109740.0,109730.0,0.50090313]
[1758878465970,0.86204934,109740.0,109730.0,0.59195493]
[1758878466157,0.86199517,109740.0,109730.0,0.59195493]
[1758878467171,0.95303867,109740.0,109730.0,0.59195493]
[1758878467371,0.95303867,109740.0,109730.0,0.60095397]
[1758878469976,0.86199517,109740.0,109730.0,0.60095397]
[1758878470965,0.95303867,109740.0,109730.0,0.60095397]
[1758878471577,0.86199517,109740.0,109730.0,0.60095397]
[1758878472172,0.02715517,109740.0,109730.0,0.60095397]
[1758878472568,0.86195517,109740.0,109730.0,0.60095397]
[1758878473175,0.02715517,109740.0,109730.0,0.60095397]
[1758878473373,0.86195517,109740.0,109730.0,0.60095397]
[1758878474069,0.02715517,109740.0,109730.0,0.60095397]
[1758878474275,0.86191517,109740.0,109730.0,0.60095397]
[1758878474574,0.83976,109740.0,109730.0,0.60095397]
[1758878475764,0.73976,109740.0,109730.0,1.00095397]
[1758878476379,0.73976,109740.0,109730.0,1.36175397]
[1758878476578,0.73976,109740.0,109730.0,1.42694953]
[1758878477470,0.73976,109740.0,109730.0,1.36175397]
[1758878481375,0.73976,109740.0,109730.0,1.45288259]
[1758878483680,1.2865206,109750.0,109740.0,0.0910438]
[1758878483981,1.30866238,109750.0,109740.0,0.59307693]
[1758878484788,1.30866238,109750.0,109740.0,0.50203313]
[1758878484987,1.30866238,109750.0,109740.0,0.59307693]
[1758878488089,0.94786238,109750.0,109740.0,0.59307693]
[1758878488983,1.30866238,109750.0,109740.0,0.59307693]
[1758878489384,0.94786238,109750.0,109740.0,0.59307693]
[1758878490393,1.30866238,109750.0,109740.0,0.50203313]
[1758878491697,0.47398238,109750.0,109740.0,0.50203313]
[1758878491890,1.30858238,109750.0,109740.0,0.50203313]
[1758878492604,1.30858238,109750.0,109740.0,0.8260199]
[1758878492998,1.30857718,109750.0,109740.0,0.8260199]
[1758878493500,0.94777718,109750.0,109740.0,0.8260199]
[1758878494298,0.02214178,109750.0,109740.0,0.8260199]
[1758878494600,0.85674178,109750.0,109740.0,0.8260199]
[1758878494800,0.94777678,109750.0,109740.0,0.8260199]
[1758878495304,0.11317678,109750.0,109740.0,0.8260199]
[1758878495504,0.94777678,109750.0,109740.0,0.8260199]
[1758878497807,0.94777678,109750.0,109740.0,0.7349762]
[1758878511721,0.94777678,109750.0,109740.0,0.03573]
[1758878511921,0.94777678,109750.0,109740.0,0.7349762]
[1758878515818,0.94777678,109750.0,109740.0,0.03573]
[1758878516020,0.94777678,109750.0,109740.0,0.3853531]
[1758878516021,2.05819988,109750.0,109740.0,0.3853531]
[1758878517325,2.05819988,109750.0,109740.0,0.03573]
[1758878517518,2.05819988,109750.0,109740.0,0.3853531]
[1758878523028,1.70857678,109750.0,109740.0,0.3853531]
[1758878523228,2.05819988,109750.0,109740.0,0.3853531]
[1758878523527,2.05819988,109750.0,109740.0,0.7349762]
[1758878523827,2.05815988,109750.0,109740.0,0.7349762]
[1758878528230,1.70853678,109750.0,109740.0,0.3853531]
[1758878528625,2.05815988,109750.0,109740.0,0.3853531]
[1758878530632,1.22359988,109750.0,109740.0,0.7349762]
[1758878530834,2.05863988,109750.0,109740.0,0.7349762]
[1758878532829,2.05863988,109750.0,109740.0,0.3853531]
[1758878534032,1.70901678,109750.0,109740.0,0.3853531]
[1758878534226,2.05863988,109750.0,109740.0,0.7349762]
[1758878534931,2.05879988,109750.0,109740.0,0.7349762]
[1758878535532,2.05891988,109750.0,109740.0,0.3853531]
[1758878535831,2.05891988,109750.0,109740.0,0.7349762]
[1758878536431,1.70929678,109750.0,109740.0,0.7349762]
[1758878537933,2.05891988,109750.0,109740.0,0.3853531]
[1758878540937,2.05851988,109750.0,109740.0,0.7349762]
[1758878541828,2.05851988,109750.0,109740.0,0.3853531]
[1758878543332,1.22359988,109750.0,109740.0,0.3853531]
[1758878543539,1.70893678,109750.0,109740.0,0.7349762]
[1758878543838,1.34813678,109750.0,109740.0,0.7349762]
[1758878544039,1.34813678,109750.0,109740.0,0.8260199]
[1758878545536,1.34813678,109750.0,109740.0,0.7349762]
[1758878546135,1.70893678,109750.0,109740.0,0.7349762]
[1758878546636,1.7087024,109750.0,109740.0,0.7349762]
[1758878547937,1.3479024,109750.0,109740.0,0.7349762]
[1758878550541,1.7087024,109750.0,109740.0,0.7349762]
[1758878552643,1.7087024,109750.0,109740.0,0.50188768]
[1758878553139,1.7087024,109750.0,109740.0,0.03573]
[1758878553332,1.7087024,109750.0,109740.0,0.50188768]
[1758878559446,1.3087024,109750.0,109740.0,0.50188768]
[1758878571856,1.3087024,109750.0,109740.0,0.03573]
[1758878572054,1.3087024,109750.0,109740.0,0.50188768]
[1758878573347,0.4737424,109750.0,109740.0,0.50188768]
[1758878573547,1.3083024,109750.0,109740.0,0.50188768]
[1758878583161,1.3083024,109750.0,109740.0,0.03573]
[1758878583461,1.3083024,109750.0,109740.0,0.50188768]
[1758878586854,1.3083024,109750.0,109740.0,0.03573]
[1758878587051,1.3083024,109750.0,109740.0,0.50188768]
[1758878587267,1.3083024,109750.0,109730.0,0.0346]
[1758878587268,0.0910437,109740.0,109730.0,0.0346]
[1758878587456,0.93990878,109740.0,109730.0,0.0346]
[1758878587761,0.4737511,109740.0,109730.0,0.0346]
[1758878590367,0.48308537,109740.0,109730.0,0.0346]
[1758878591866,0.48308537,109740.0,109730.0,0.01351]
[1758878592066,0.48308537,109740.0,109730.0,0.0346]
[1758878592868,0.48308537,109740.0,109730.0,0.01351]
[1758878593169,0.48308537,109740.0,109730.0,0.0346]
[1758878593363,0.94924305,109740.0,109730.0,0.01351]
[1758878593964,0.94924305,109740.0,109720.0,0.50028774]
[1758878594265,0.0910602,109720.0,109710.0,0.0552077]
[1758878594465,0.94015792,109720.0,109710.0,0.0341177]
[1758878594665,0.47400024,109720.0,109710.0,0.0341177]
[1758878595061,0.54618463,109720.0,109710.0,0.0341177]
[1758878597368,0.54618463,109720.0,109710.0,0.0371177]
[1758878597867,0.54618463,109720.0,109710.0,0.0381177]
[1758878598762,1.01234231,109720.0,109710.0,0.0381177]
[1758878599661,1.01234231,109720.0,109710.0,0.0351177]
[1758878599868,1.01234231,109720.0,109710.0,0.0341177]
[1758878600067,0.54618463,109720.0,109710.0,0.0341177]
[1758878601460,1.01234231,109720.0,109710.0,0.0341177]
[1758878604569,0.99020227,109720.0,109710.0,0.0341177]
[1758878607672,1.01229546,109720.0,109710.0,0.0341177]
[1758878607875,1.01229546,109720.0,109710.0,0.0210377]
[1758878609670,1.01229546,109720.0,109700.0,0.0354]
[1758878609671,0.0910684,109710.0,109700.0,0.0354]
[1758878609971,0.0910767,109700.0,109690.0,0.0354]
[1758878610170,0.46099284,109700.0,109690.0,0.0354]
[1758878610771,0.091085,109690.0,109680.0,0.0354]
[1758878611076,1.75156268,109690.0,109680.0,0.01376]
[1758878611271,0.0910933,109680.0,109670.0,0.03441]
[1758878611470,0.4518933,109680.0,109670.0,0.03441]
[1758878611871,0.4488933,109680.0,109670.0,0.03441]
[1758878612478,0.4428933,109680.0,109670.0,0.03441]
[1758878613180,0.4428933,109680.0,109670.0,0.04641]
[1758878614071,0.4428933,109680.0,109670.0,0.04841]
[1758878614675,0.79300555,109680.0,109670.0,0.39852225]
[1758878616682,0.86681204,109680.0,109670.0,0.39852225]
[1758878617784,0.86681204,109680.0,109670.0,0.04841]
[1758878618085,0.86681204,109680.0,109670.0,0.39852225]
[1758878620385,0.88900204,109680.0,109670.0,0.39852225]
[1758878621881,1.37352979,109680.0,109670.0,0.39852225]
[1758878622083,1.35133979,109680.0,109670.0,0.39852225]
[1758878622281,1.3735337,109680.0,109670.0,0.39852225]
[1758878622482,1.35133979,109680.0,109670.0,0.39852225]
[1758878623383,1.37353795,109680.0,109670.0,0.39852225]
[1758878624888,0.53889795,109680.0,109670.0,0.39852225]
[1758878625189,1.01273795,109680.0,109670.0,0.39852225]
[1758878626182,0.17809795,109680.0,109670.0,0.7486345]
[1758878626382,0.90844649,109680.0,109670.0,1.2397361]
[1758878626682,0.90844649,109680.0,109670.0,1.6005361]
[1758878627988,0.99953979,109680.0,109670.0,1.6005361]
[1758878628486,1.02174632,109680.0,109670.0,1.6005361]
[1758878629495,1.02174632,109680.0,109670.0,1.5094345]
[1758878629982,0.09601302,109680.0,109670.0,1.6005361]
[1758878630187,0.83464,109680.0,109670.0,1.6005361]
[1758878631085,0.9257333,109680.0,109670.0,1.6005361]
[1758878631787,0.83464,109680.0,109670.0,1.6005361]
[1758878632790,0.0910872,109690.0,109680.0,0.1255033]
[1758878632982,0.4518727,109710.0,109690.0,0.1254949]
[1758878633292,0.47367103,109710.0,109700.0,0.7346345]
[1758878633488,1.30827103,109710.0,109700.0,0.7346345]
[1758878634385,0.47367103,109710.0,109700.0,0.7346345]
[1758878634591,0.95147103,109710.0,109700.0,0.7346345]
[1758878635086,0.95347103,109710.0,109700.0,0.7346345]
[1758878635688,0.02779833,109710.0,109700.0,0.7346345]
[1758878635895,0.005,109710.0,109700.0,1.1865111]
[1758878636086,0.83956,109710.0,109700.0,1.1865111]
[1758878637992,0.83856,109710.0,109700.0,1.1865111]
[1758878638495,0.83456,109710.0,109700.0,1.1875111]
[1758878640489,0.83448,109710.0,109700.0,1.1875111]
[1758878640692,0.9255483,109710.0,109700.0,0.4872866]
[1758878640887,0.9255483,109710.0,109700.0,1.1875111]
[1758878641088,0.52404969,109720.0,109710.0,0.01346]
[1758878641292,1.38031536,109720.0,109710.0,0.38652225]
[1758878641493,1.38027536,109720.0,109710.0,0.38652225]
[1758878642098,0.47365097,109720.0,109710.0,0.38652225]
[1758878642398,1.2873053,109720.0,109710.0,0.38652225]
[1758878642599,1.2913053,109720.0,109710.0,0.38652225]
[1758878643403,1.20024,109720.0,109710.0,0.47759055]
[1758878643698,1.2913,109720.0,109710.0,0.38652225]
[1758878644702,1.29126,109720.0,109710.0,0.38652225]
[1758878645000,1.2002,109720.0,109710.0,0.47759055]
[1758878645303,1.29126,109720.0,109710.0,0.03641]
[1758878645497,1.29126,109720.0,109710.0,0.38652225]
[1758878645698,1.64137225,109720.0,109710.0,0.38652225]
[1758878647005,0.0910683,109710.0,109700.0,0.03397]
[1758878647200,0.80198055,109710.0,109700.0,0.38408225]
[1758878647908,0.80198055,109710.0,109700.0,0.03397]
[1758878648399,0.80198055,109710.0,109700.0,0.38408225]
[1758878648704,0.80198055,109710.0,109700.0,0.38508225]
[1758878649002,0.80198055,109710.0,109700.0,0.001]
[1758878649003,1.22372456,109710.0,109700.0,0.001]
[1758878649709,0.0910766,109700.0,109690.0,0.38408225]
[1758878649904,1.27554885,109700.0,109690.0,0.38408225]
[1758878650407,1.63634885,109700.0,109690.0,0.38408225]
[1758878650605,1.63634885,109700.0,109690.0,0.01277]
[1758878651006,0.0910845,109690.0,109680.0,0.03397]
[1758878651208,0.4518845,109690.0,109680.0,0.38408225]
[1758878652406,0.4518845,109690.0,109680.0,0.7351945]
[1758878653109,0.4518845,109690.0,109680.0,0.38508225]
[1758878653409,0.80199675,109690.0,109680.0,0.38508225]
[1758878653611,1.20199675,109690.0,109680.0,0.01377]